[Event "*** Titled Tuesday Blitz"]
[Site "Chess.com"]
[Date "2019.12.03"]
[Round "3"]
[White "Niklas2304"]
[Black "black_pawn_16"]
[Result "1-0"]
[WhiteElo "2379"]
[BlackElo "2148"]
[TimeControl "180+2"]
[EndTime "13:38:25 PST"]
[Termination "Niklas2304 won by resignation"]

1. e4 {[%clk 0:03:01.9]} 1... c5 {[%clk 0:03:00.1]} 2. Nf3 {[%clk 0:03:02.7]}
2... d6 {[%clk 0:03:01.2]} 3. d4 {[%clk 0:03:03.9]} 3... cxd4 {[%clk 0:03:03.1]}
4. Nxd4 {[%clk 0:03:05.3]} 4... Nf6 {[%clk 0:03:05]} 5. Nc3 {[%clk 0:03:06.5]}
5... a6 {[%clk 0:03:06.5]} 6. Bg5 {[%clk 0:03:08]} 6... e6 {[%clk 0:03:07]} 7.
f4 {[%clk 0:03:08.7]} 7... Qb6 {[%clk 0:03:08.1]} 8. a3 {[%clk 0:03:08.1]} 8...
Bd7 {[%clk 0:03:03.3]} 9. Bh4 {[%clk 0:02:59.4]} 9... Be7 {[%clk 0:02:57.3]} 10.
Bf2 {[%clk 0:02:59.4]} 10... Qxb2 {[%clk 0:02:40.2]} 11. Nde2 {[%clk 0:02:57.9]}
11... O-O {[%clk 0:02:20.1]} 12. Ra2 {[%clk 0:02:56.7]} 12... Qxa2 {[%clk
0:02:08.4]} 13. Nxa2 {[%clk 0:02:55.2]} 13... Nxe4 {[%clk 0:02:09.5]} 14. Be3
{[%clk 0:02:51.4]} 14... Nc6 {[%clk 0:02:07]} 15. Nac3 {[%clk 0:02:49.4]} 15...
Nf6 {[%clk 0:02:07]} 16. Ng3 {[%clk 0:02:33.9]} 16... d5 {[%clk 0:02:05.6]} 17.
Be2 {[%clk 0:02:20.1]} 17... Rad8 {[%clk 0:02:04.5]} 18. Bb6 {[%clk 0:02:18.8]}
18... Rc8 {[%clk 0:02:03.8]} 19. O-O {[%clk 0:02:12.6]} 19... Bxa3 {[%clk
0:02:03.3]} 20. f5 {[%clk 0:02:03.4]} 20... Bb4 {[%clk 0:01:46.7]} 21. Na2
{[%clk 0:01:53.3]} 21... Bd6 {[%clk 0:01:46.1]} 22. Nh5 {[%clk 0:01:41.5]} 22...
Ne4 {[%clk 0:01:41.4]} 23. Bd3 {[%clk 0:01:35.9]} 23... exf5 {[%clk 0:01:38.3]}
24. Bxe4 {[%clk 0:01:34.8]} 24... fxe4 {[%clk 0:01:38.1]} 25. Qxd5 {[%clk
0:01:33.2]} 25... Be6 {[%clk 0:01:31]} 26. Qxd6 {[%clk 0:01:20.4]} 26... Bxa2
{[%clk 0:01:30]} 27. Nxg7 {[%clk 0:00:56.7]} 27... f6 {[%clk 0:00:53.6]} 28. Nf5
{[%clk 0:00:48.2]} 28... Kh8 {[%clk 0:00:53]} 29. Qd7 {[%clk 0:00:33.7]} 29...
Rg8 {[%clk 0:00:45.6]} 30. Bd4 {[%clk 0:00:29.2]} 30... Rcf8 {[%clk 0:00:34.7]}
31. Nh6 {[%clk 0:00:16.2]} 31... Rg7 {[%clk 0:00:34.4]} 32. Qd6 {[%clk
0:00:16.2]} 32... Rd8 {[%clk 0:00:30.2]} 33. Rxf6 {[%clk 0:00:07.9]} 33... Bg8
{[%clk 0:00:19.6]} 34. Rf8 {[%clk 0:00:05.7]} 34... Nxd4 {[%clk 0:00:09.7]} 35.
Rxd8 {[%clk 0:00:03.9]} 35... Ne2+ {[%clk 0:00:09.9]} 36. Kf2 {[%clk 0:00:04.3]}
36... Rxg2+ {[%clk 0:00:09.4]} 37. Kxg2 {[%clk 0:00:04.6]} 1-0

[Event "*** Titled Tuesday Blitz"]
[Site "Chess.com"]
[Date "2019.12.03"]
[Round "3"]
[White "matiss90"]
[Black "artooon"]
[Result "0-1"]
[WhiteElo "2564"]
[BlackElo "2805"]
[TimeControl "180+2"]
[EndTime "13:38:28 PST"]
[Termination "artooon won by resignation"]

1. e4 {[%clk 0:03:01.9]} 1... e5 {[%clk 0:02:59.6]} 2. Nf3 {[%clk 0:03:02.7]}
2... Nc6 {[%clk 0:03:01]} 3. d4 {[%clk 0:03:03.8]} 3... exd4 {[%clk 0:03:01.7]}
4. Nxd4 {[%clk 0:03:05.7]} 4... Nf6 {[%clk 0:03:02.9]} 5. Nc3 {[%clk 0:03:06.7]}
5... Bb4 {[%clk 0:03:03.2]} 6. Nxc6 {[%clk 0:03:07.7]} 6... bxc6 {[%clk
0:03:05.1]} 7. Bd3 {[%clk 0:03:08.6]} 7... d5 {[%clk 0:03:06.1]} 8. exd5 {[%clk
0:03:10.5]} 8... O-O {[%clk 0:03:07.6]} 9. O-O {[%clk 0:03:11.3]} 9... cxd5
{[%clk 0:03:09.1]} 10. h3 {[%clk 0:03:11.1]} 10... h6 {[%clk 0:03:09.1]} 11. Re1
{[%clk 0:03:02.5]} 11... c5 {[%clk 0:02:59.7]} 12. a3 {[%clk 0:02:54.6]} 12...
Ba5 {[%clk 0:02:58.7]} 13. Bd2 {[%clk 0:02:04.9]} 13... Rb8 {[%clk 0:02:53.3]}
14. Rb1 {[%clk 0:02:05.3]} 14... Be6 {[%clk 0:02:26]} 15. Qf3 {[%clk 0:01:57.8]}
15... c4 {[%clk 0:02:19.4]} 16. Bf1 {[%clk 0:01:42.1]} 16... d4 {[%clk
0:02:20.6]} 17. Ne4 {[%clk 0:01:39.4]} 17... Nxe4 {[%clk 0:02:21.4]} 18. Bxa5
{[%clk 0:01:39.6]} 18... Qxa5 {[%clk 0:02:23.3]} 19. Qxe4 {[%clk 0:01:33.6]}
19... Rfd8 {[%clk 0:02:24.3]} 20. Red1 {[%clk 0:01:30.4]} 20... Bf5 {[%clk
0:02:18.7]} 21. Qf4 {[%clk 0:00:55.4]} 21... Bxc2 {[%clk 0:02:15.7]} 22. Bxc4
{[%clk 0:00:56.1]} 22... Bxb1 {[%clk 0:02:07.8]} 23. Qxf7+ {[%clk 0:00:54.1]}
23... Kh8 {[%clk 0:02:08.3]} 24. Rxb1 {[%clk 0:00:55.2]} 24... d3 {[%clk
0:02:01]} 25. Qg6 {[%clk 0:00:46.2]} 25... Qd2 {[%clk 0:01:58.4]} 26. b3 {[%clk
0:00:43.1]} 26... Rb6 {[%clk 0:01:36.4]} 27. Qg4 {[%clk 0:00:10]} 27... Rbd6
{[%clk 0:01:29.9]} 28. Rd1 {[%clk 0:00:10.3]} 28... Qc2 {[%clk 0:01:19.1]} 29.
a4 {[%clk 0:00:04.8]} 29... d2 {[%clk 0:01:13.2]} 30. Kh2 {[%clk 0:00:05.6]}
30... Rd4 {[%clk 0:01:06.1]} 31. Qe2 {[%clk 0:00:05.5]} 31... Re4 {[%clk
0:01:00.9]} 32. Qf1 {[%clk 0:00:03]} 32... Qc3 {[%clk 0:01:00.9]} 33. Be2 {[%clk
0:00:03.5]} 33... Rde8 {[%clk 0:00:59.2]} 34. Bf3 {[%clk 0:00:03.2]} 34... Re1
{[%clk 0:00:59.4]} 35. Qb5 {[%clk 0:00:04]} 35... Qc7+ {[%clk 0:00:48.5]} 36. g3
{[%clk 0:00:04.7]} 36... Rd8 {[%clk 0:00:49.8]} 37. Kg2 {[%clk 0:00:04.8]} 37...
Rxd1 {[%clk 0:00:33.6]} 38. Bxd1 {[%clk 0:00:06.7]} 38... Qc1 {[%clk 0:00:29.5]}
39. Qe2 {[%clk 0:00:06.7]} 39... Qc6+ {[%clk 0:00:29]} 40. Kh2 {[%clk
0:00:04.6]} 40... Qe8 {[%clk 0:00:30.4]} 41. Kg2 {[%clk 0:00:04.4]} 41... Qxe2
{[%clk 0:00:31]} 42. Bxe2 {[%clk 0:00:06.3]} 42... d1=Q {[%clk 0:00:32.9]} 43.
Bxd1 {[%clk 0:00:07.5]} 43... Rxd1 {[%clk 0:00:34.8]} 44. b4 {[%clk 0:00:08.6]}
44... Rb1 {[%clk 0:00:36.7]} 45. b5 {[%clk 0:00:09.7]} 45... Rb4 {[%clk
0:00:38.2]} 0-1

[Event "*** Titled Tuesday Blitz"]
[Site "Chess.com"]
[Date "2019.12.03"]
[Round "3"]
[White "FrogMist"]
[Black "Benjoneliere44"]
[Result "1-0"]
[WhiteElo "2295"]
[BlackElo "2467"]
[TimeControl "180+2"]
[EndTime "13:38:39 PST"]
[Termination "FrogMist won by resignation"]

1. e4 {[%clk 0:03:01.9]} 1... c5 {[%clk 0:02:59.8]} 2. Nf3 {[%clk 0:03:01.3]}
2... d6 {[%clk 0:03:01.2]} 3. d4 {[%clk 0:03:02.9]} 3... cxd4 {[%clk 0:03:02.8]}
4. Nxd4 {[%clk 0:03:04.8]} 4... Nf6 {[%clk 0:03:04.1]} 5. Nc3 {[%clk 0:03:06.3]}
5... g6 {[%clk 0:03:05.6]} 6. Be3 {[%clk 0:03:06]} 6... Bg7 {[%clk 0:03:07.1]}
7. Be2 {[%clk 0:03:07.2]} 7... O-O {[%clk 0:03:04.4]} 8. Qd2 {[%clk 0:03:08.6]}
8... Nc6 {[%clk 0:03:05.6]} 9. O-O-O {[%clk 0:03:09.8]} 9... Ng4 {[%clk
0:03:06.8]} 10. Bxg4 {[%clk 0:03:10.5]} 10... Bxg4 {[%clk 0:03:08.7]} 11. f3
{[%clk 0:03:12.1]} 11... Bd7 {[%clk 0:03:09.8]} 12. Nxc6 {[%clk 0:03:08.5]}
12... bxc6 {[%clk 0:03:03.3]} 13. Bh6 {[%clk 0:03:09.6]} 13... Qa5 {[%clk
0:03:03.8]} 14. Bxg7 {[%clk 0:02:58.3]} 14... Kxg7 {[%clk 0:03:05.7]} 15. h4
{[%clk 0:02:59.5]} 15... h5 {[%clk 0:03:06.7]} 16. Qg5 {[%clk 0:02:59.8]} 16...
Qxg5+ {[%clk 0:02:46.1]} 17. hxg5 {[%clk 0:03:01.7]} 17... f6 {[%clk 0:02:35.1]}
18. gxf6+ {[%clk 0:03:01.3]} 18... Kxf6 {[%clk 0:02:37]} 19. Rhe1 {[%clk
0:02:50.8]} 19... Rad8 {[%clk 0:01:49.2]} 20. e5+ {[%clk 0:02:27.2]} 20... dxe5
{[%clk 0:01:48.7]} 21. Ne4+ {[%clk 0:02:28.8]} 21... Kg7 {[%clk 0:01:49.9]} 22.
Nc5 {[%clk 0:02:26]} 22... Bc8 {[%clk 0:01:50.1]} 23. Rxe5 {[%clk 0:02:05.5]}
23... Rxd1+ {[%clk 0:01:47.6]} 24. Kxd1 {[%clk 0:02:07.4]} 24... Rd8+ {[%clk
0:01:48.1]} 25. Ke2 {[%clk 0:02:08.3]} 25... Kf6 {[%clk 0:01:49]} 26. Re4 {[%clk
0:02:04.5]} 26... Bf5 {[%clk 0:01:48]} 27. Ra4 {[%clk 0:02:00.2]} 27... Bxc2
{[%clk 0:01:46.7]} 28. Rxa7 {[%clk 0:02:01.3]} 28... Rd5 {[%clk 0:01:47.8]} 29.
b4 {[%clk 0:01:53]} 29... g5 {[%clk 0:01:44.9]} 30. Ra6 {[%clk 0:01:43.8]} 30...
Rd6 {[%clk 0:01:45.2]} 31. Ke3 {[%clk 0:01:30.6]} 31... Ke5 {[%clk 0:01:40.7]}
32. a4 {[%clk 0:01:27]} 32... Kd5 {[%clk 0:01:40.5]} 33. Ra7 {[%clk 0:01:21.6]}
33... Kc4 {[%clk 0:01:36.8]} 34. Rb7 {[%clk 0:01:13.6]} 34... Rd1 {[%clk
0:01:23.5]} 35. a5 {[%clk 0:01:13]} 35... Ra1 {[%clk 0:01:22.3]} 36. a6 {[%clk
0:01:11.8]} 36... e5 {[%clk 0:01:04.2]} 37. a7 {[%clk 0:01:10.5]} 37... Ra3+
{[%clk 0:01:05.5]} 38. Kf2 {[%clk 0:01:07.4]} 38... g4 {[%clk 0:01:07.4]} 39.
Nd7 {[%clk 0:01:01.1]} 39... c5 {[%clk 0:00:45.7]} 40. bxc5 {[%clk 0:00:51]}
40... e4 {[%clk 0:00:44.8]} 41. a8=Q {[%clk 0:00:41.3]} 41... e3+ {[%clk
0:00:42.3]} 42. Ke2 {[%clk 0:00:38.7]} 42... gxf3+ {[%clk 0:00:39.7]} 43. gxf3
{[%clk 0:00:39.4]} 43... Rxa8 {[%clk 0:00:30]} 44. Nb6+ {[%clk 0:00:40.6]} 44...
Kxc5 {[%clk 0:00:31.6]} 45. Nxa8 {[%clk 0:00:42.5]} 45... Kd4 {[%clk 0:00:31]}
46. Rd7+ {[%clk 0:00:42.3]} 46... Ke5 {[%clk 0:00:30.4]} 47. Kxe3 {[%clk
0:00:43.8]} 47... Kf5 {[%clk 0:00:31.7]} 48. Nb6 {[%clk 0:00:43.8]} 48... Kg5
{[%clk 0:00:32.5]} 49. Nc4 {[%clk 0:00:44.4]} 49... h4 {[%clk 0:00:33.5]} 50.
Rd2 {[%clk 0:00:44.6]} 50... Bf5 {[%clk 0:00:33.3]} 51. Ne5 {[%clk 0:00:45.9]}
51... h3 {[%clk 0:00:34.1]} 52. f4+ {[%clk 0:00:45.5]} 52... Kh4 {[%clk
0:00:34.6]} 53. Nf3+ {[%clk 0:00:45]} 53... Kg3 {[%clk 0:00:35.1]} 54. Rd8
{[%clk 0:00:40.4]} 54... Bg4 {[%clk 0:00:34.1]} 55. Rg8 {[%clk 0:00:39.9]} 55...
h2 {[%clk 0:00:30.4]} 56. Nxh2 {[%clk 0:00:41]} 1-0

[Event "*** Titled Tuesday Blitz"]
[Site "Chess.com"]
[Date "2019.12.03"]
[Round "3"]
[White "GulamaliRises"]
[Black "jefferyx"]
[Result "0-1"]
[WhiteElo "2484"]
[BlackElo "2892"]
[TimeControl "180+2"]
[EndTime "13:38:47 PST"]
[Termination "jefferyx won by resignation"]

1. e4 {[%clk 0:03:01.9]} 1... e6 {[%clk 0:03:01.5]} 2. d4 {[%clk 0:03:02.6]}
2... d5 {[%clk 0:03:03.4]} 3. e5 {[%clk 0:03:03.5]} 3... c5 {[%clk 0:03:02.7]}
4. c3 {[%clk 0:03:04.9]} 4... b6 {[%clk 0:03:04.5]} 5. Nf3 {[%clk 0:02:55.8]}
5... Qd7 {[%clk 0:03:05.3]} 6. dxc5 {[%clk 0:02:45.7]} 6... bxc5 {[%clk
0:03:04.3]} 7. c4 {[%clk 0:02:46.5]} 7... Ne7 {[%clk 0:03:04.2]} 8. Nc3 {[%clk
0:02:46.7]} 8... Ba6 {[%clk 0:03:01.3]} 9. b3 {[%clk 0:02:27.3]} 9... Nbc6
{[%clk 0:02:26.9]} 10. Bf4 {[%clk 0:02:21.9]} 10... Ng6 {[%clk 0:02:26.3]} 11.
Bg3 {[%clk 0:02:20.4]} 11... d4 {[%clk 0:02:14.3]} 12. Ne4 {[%clk 0:02:21.4]}
12... Bb7 {[%clk 0:02:15.8]} 13. Bd3 {[%clk 0:02:17.3]} 13... Qc7 {[%clk
0:01:48.8]} 14. Nd6+ {[%clk 0:02:16.8]} 14... Bxd6 {[%clk 0:01:49.9]} 15. exd6
{[%clk 0:02:18.7]} 15... Qa5+ {[%clk 0:01:51.6]} 16. Kf1 {[%clk 0:02:00.6]}
16... Nf8 {[%clk 0:01:34]} 17. a3 {[%clk 0:01:57.6]} 17... Nd7 {[%clk
0:01:34.7]} 18. b4 {[%clk 0:01:55.7]} 18... cxb4 {[%clk 0:01:35.4]} 19. axb4
{[%clk 0:01:57.6]} 19... Qd8 {[%clk 0:01:18.5]} 20. Qa4 {[%clk 0:01:28.4]} 20...
O-O {[%clk 0:01:17.4]} 21. Be4 {[%clk 0:00:46.3]} 21... Nb6 {[%clk 0:01:11.6]}
22. Qb5 {[%clk 0:00:41.9]} 22... a6 {[%clk 0:01:02.1]} 23. Qh5 {[%clk
0:00:42.2]} 23... h6 {[%clk 0:01:00.1]} 24. Ne5 {[%clk 0:00:27.5]} 24... Qc8
{[%clk 0:00:57.3]} 25. Nxf7 {[%clk 0:00:21.2]} 25... Rxf7 {[%clk 0:00:46]} 26.
Qg6 {[%clk 0:00:22.4]} 26... Rf5 {[%clk 0:00:47.7]} 27. Bxf5 {[%clk 0:00:20.7]}
27... exf5 {[%clk 0:00:49.6]} 28. c5 {[%clk 0:00:21.7]} 28... Nc4 {[%clk
0:00:45.2]} 29. Re1 {[%clk 0:00:20.7]} 29... d3 {[%clk 0:00:40.4]} 30. Bf4
{[%clk 0:00:21.2]} 30... Qd7 {[%clk 0:00:34.6]} 31. h4 {[%clk 0:00:14]} 31... d2
{[%clk 0:00:33.5]} 32. Rd1 {[%clk 0:00:15.1]} 32... Re8 {[%clk 0:00:34.4]} 33.
Rh3 {[%clk 0:00:15.5]} 33... Re6 {[%clk 0:00:31]} 34. Qh5 {[%clk 0:00:13.9]}
34... Nxb4 {[%clk 0:00:27]} 35. Rc3 {[%clk 0:00:11.9]} 35... Qb5 {[%clk
0:00:21.5]} 36. Kg1 {[%clk 0:00:12.2]} 36... Qc6 {[%clk 0:00:21.3]} 37. Rg3
{[%clk 0:00:10.2]} 37... Qe8 {[%clk 0:00:15.3]} 38. Qxe8+ {[%clk 0:00:06.7]}
38... Rxe8 {[%clk 0:00:17.2]} 39. Bxd2 {[%clk 0:00:07.8]} 39... Nxd2 {[%clk
0:00:06.9]} 40. Rxd2 {[%clk 0:00:09.7]} 40... Bc6 {[%clk 0:00:08.5]} 41. d7
{[%clk 0:00:06.3]} 41... Rd8 {[%clk 0:00:09.6]} 42. Rd6 {[%clk 0:00:08]} 42...
Rxd7 {[%clk 0:00:10.4]} 43. Rgg6 {[%clk 0:00:04.7]} 43... Rc7 {[%clk 0:00:10.5]}
44. h5 {[%clk 0:00:04.7]} 44... a5 {[%clk 0:00:11.4]} 45. Rd4 {[%clk 0:00:06]}
45... Be8 {[%clk 0:00:10]} 46. Rb6 {[%clk 0:00:06]} 46... Bxh5 {[%clk
0:00:10.1]} 47. Rd8+ {[%clk 0:00:07.3]} 47... Kh7 {[%clk 0:00:10.7]} 48. Rb5
{[%clk 0:00:09.2]} 48... Be2 {[%clk 0:00:08.6]} 49. Rxa5 {[%clk 0:00:09.9]}
49... Nc6 {[%clk 0:00:09.9]} 50. Ra2 {[%clk 0:00:09]} 50... Nxd8 {[%clk
0:00:11]} 51. Rxe2 {[%clk 0:00:10.9]} 51... Rxc5 {[%clk 0:00:12.6]} 52. Rd2
{[%clk 0:00:12.1]} 52... Ne6 {[%clk 0:00:13.9]} 0-1

[Event "*** Titled Tuesday Blitz"]
[Site "Chess.com"]
[Date "2019.12.03"]
[Round "3"]
[White "1977Ivan"]
[Black "ehrenfeld"]
[Result "1/2-1/2"]
[WhiteElo "2775"]
[BlackElo "2567"]
[TimeControl "180+2"]
[EndTime "13:38:48 PST"]
[Termination "Game drawn by repetition"]

1. d4 {[%clk 0:03:01.9]} 1... Nf6 {[%clk 0:02:56.9]} 2. c4 {[%clk 0:03:02.8]}
2... e6 {[%clk 0:02:57.8]} 3. Nc3 {[%clk 0:03:03.1]} 3... Bb4 {[%clk 0:02:58.5]}
4. e3 {[%clk 0:03:04.3]} 4... b6 {[%clk 0:02:59.2]} 5. Bd3 {[%clk 0:03:03.3]}
5... Bb7 {[%clk 0:02:58.2]} 6. Ne2 {[%clk 0:03:04.2]} 6... Bxg2 {[%clk
0:02:54.2]} 7. Rg1 {[%clk 0:03:04.8]} 7... Bf3 {[%clk 0:02:34.1]} 8. Qc2 {[%clk
0:03:03.6]} 8... O-O {[%clk 0:02:14]} 9. e4 {[%clk 0:02:58.5]} 9... Bxc3+ {[%clk
0:02:10.1]} 10. Nxc3 {[%clk 0:02:54]} 10... Nc6 {[%clk 0:01:50]} 11. Bg5 {[%clk
0:02:20.5]} 11... Nxd4 {[%clk 0:01:47.3]} 12. Qd2 {[%clk 0:02:20.9]} 12... d6
{[%clk 0:01:07]} 13. Rg3 {[%clk 0:02:03.5]} 13... Bh5 {[%clk 0:01:04.5]} 14. Qf4
{[%clk 0:01:45.4]} 14... Bg6 {[%clk 0:00:51]} 15. Qh4 {[%clk 0:01:44.8]} 15...
h6 {[%clk 0:00:37.5]} 16. Bxh6 {[%clk 0:01:36.2]} 16... Nxe4 {[%clk 0:00:27.3]}
17. Qxd8 {[%clk 0:01:25.5]} 17... Raxd8 {[%clk 0:00:25.7]} 18. Bxe4 {[%clk
0:01:26.1]} 18... gxh6 {[%clk 0:00:23.5]} 19. O-O-O {[%clk 0:01:27.1]} 19... c5
{[%clk 0:00:15]} 20. Rdg1 {[%clk 0:00:39.6]} 20... Kh7 {[%clk 0:00:15.5]} 21.
Bxg6+ {[%clk 0:00:41]} 21... fxg6 {[%clk 0:00:16]} 22. Rxg6 {[%clk 0:00:42.6]}
22... Rg8 {[%clk 0:00:16.3]} 23. Rxg8 {[%clk 0:00:43.1]} 23... Rxg8 {[%clk
0:00:17.3]} 24. Rxg8 {[%clk 0:00:44.6]} 24... Kxg8 {[%clk 0:00:18.2]} 25. Ne4
{[%clk 0:00:46.5]} 25... Nf5 {[%clk 0:00:18.6]} 26. Kd2 {[%clk 0:00:45.9]} 26...
Kf7 {[%clk 0:00:19.4]} 27. Kd3 {[%clk 0:00:46.6]} 27... Kg6 {[%clk 0:00:17.8]}
28. Nc3 {[%clk 0:00:47.6]} 28... Kh5 {[%clk 0:00:15.9]} 29. Nb5 {[%clk
0:00:48.3]} 29... Kg4 {[%clk 0:00:16.1]} 30. Nxa7 {[%clk 0:00:49.3]} 30... Kh3
{[%clk 0:00:16.8]} 31. Nc8 {[%clk 0:00:48.9]} 31... Kxh2 {[%clk 0:00:16.2]} 32.
Nxb6 {[%clk 0:00:50]} 32... h5 {[%clk 0:00:17.2]} 33. a4 {[%clk 0:00:51.4]}
33... h4 {[%clk 0:00:16.2]} 34. a5 {[%clk 0:00:52]} 34... Ne7 {[%clk 0:00:17.4]}
35. a6 {[%clk 0:00:50.1]} 35... Nc6 {[%clk 0:00:18.3]} 36. Nc8 {[%clk
0:00:43.1]} 36... Nb4+ {[%clk 0:00:18.6]} 37. Ke2 {[%clk 0:00:43.5]} 37... Nxa6
{[%clk 0:00:18.2]} 38. Kf1 {[%clk 0:00:41.6]} 38... d5 {[%clk 0:00:16.6]} 39.
cxd5 {[%clk 0:00:37.1]} 39... exd5 {[%clk 0:00:17.7]} 40. Ne7 {[%clk 0:00:38.5]}
40... Nc7 {[%clk 0:00:18.1]} 41. Nf5 {[%clk 0:00:39.3]} 41... Kh3 {[%clk
0:00:17]} 42. f3 {[%clk 0:00:38.8]} 42... d4 {[%clk 0:00:14.3]} 43. Kf2 {[%clk
0:00:39.8]} 43... Nd5 {[%clk 0:00:14.5]} 44. Nd6 {[%clk 0:00:40.1]} 44... Nf4
{[%clk 0:00:10.5]} 45. b3 {[%clk 0:00:38.5]} 45... d3 {[%clk 0:00:10.3]} 46. Ne4
{[%clk 0:00:38.7]} 46... Kh2 {[%clk 0:00:08.4]} 47. Ke3 {[%clk 0:00:38.7]} 47...
h3 {[%clk 0:00:07.1]} 48. Kf2 {[%clk 0:00:30.7]} 48... Kh1 {[%clk 0:00:07.4]}
49. Ng3+ {[%clk 0:00:31]} 49... Kh2 {[%clk 0:00:07.7]} 50. Nf1+ {[%clk
0:00:32.5]} 50... Kh1 {[%clk 0:00:08.5]} 51. Ng3+ {[%clk 0:00:33.4]} 51... Kh2
{[%clk 0:00:09.8]} 52. Nf1+ {[%clk 0:00:34.5]} 52... Kh1 {[%clk 0:00:11]} 53.
Ng3+ {[%clk 0:00:30]} 1/2-1/2

[Event "*** Titled Tuesday Blitz"]
[Site "Chess.com"]
[Date "2019.12.03"]
[Round "3"]
[White "NemtsevIgor"]
[Black "FearNoEvil12"]
[Result "1-0"]
[WhiteElo "2327"]
[BlackElo "1973"]
[TimeControl "180+2"]
[EndTime "13:38:49 PST"]
[Termination "NemtsevIgor won by checkmate"]

1. d4 {[%clk 0:03:01.9]} 1... b5 {[%clk 0:03:00.2]} 2. e4 {[%clk 0:03:00.3]}
2... a6 {[%clk 0:03:01.5]} 3. Bd3 {[%clk 0:03:00.9]} 3... Bb7 {[%clk 0:03:02.9]}
4. Qe2 {[%clk 0:03:01.5]} 4... e6 {[%clk 0:03:04.3]} 5. Nf3 {[%clk 0:03:02.1]}
5... Nf6 {[%clk 0:03:05.7]} 6. O-O {[%clk 0:03:01.9]} 6... d6 {[%clk 0:03:06]}
7. a4 {[%clk 0:03:01.6]} 7... b4 {[%clk 0:03:06.1]} 8. c4 {[%clk 0:02:59.1]}
8... bxc3 {[%clk 0:03:04.9]} 9. Nxc3 {[%clk 0:03:00]} 9... Nbd7 {[%clk
0:03:05.3]} 10. e5 {[%clk 0:02:45]} 10... Nd5 {[%clk 0:03:03.8]} 11. Ne4 {[%clk
0:02:38]} 11... h6 {[%clk 0:03:03.1]} 12. exd6 {[%clk 0:02:31.5]} 12... cxd6
{[%clk 0:03:03.7]} 13. Re1 {[%clk 0:02:31.9]} 13... Be7 {[%clk 0:03:02.7]} 14.
Ng3 {[%clk 0:02:28.3]} 14... O-O {[%clk 0:03:02.6]} 15. Bd2 {[%clk 0:02:20.8]}
15... N7f6 {[%clk 0:03:02]} 16. b4 {[%clk 0:02:16.3]} 16... Re8 {[%clk
0:02:55.9]} 17. b5 {[%clk 0:02:14.9]} 17... axb5 {[%clk 0:02:55.5]} 18. Bxb5
{[%clk 0:02:15]} 18... Rf8 {[%clk 0:02:54.3]} 19. Rec1 {[%clk 0:02:06.7]} 19...
Qb6 {[%clk 0:02:50.5]} 20. h3 {[%clk 0:01:58.5]} 20... Ba6 {[%clk 0:02:49.9]}
21. Bxa6 {[%clk 0:01:47.5]} 21... Rxa6 {[%clk 0:02:50.4]} 22. a5 {[%clk
0:01:46.4]} 22... Qa7 {[%clk 0:02:49.3]} 23. Qc4 {[%clk 0:01:36.3]} 23... Ra8
{[%clk 0:02:45.6]} 24. Be1 {[%clk 0:01:27.3]} 24... Bd8 {[%clk 0:02:45.3]} 25.
Qb5 {[%clk 0:01:12]} 25... Kh7 {[%clk 0:02:39.1]} 26. Kh2 {[%clk 0:01:05.2]}
26... Bxa5 {[%clk 0:02:37.5]} 27. Bxa5 {[%clk 0:01:05.4]} 27... Rxa5 {[%clk
0:02:38.5]} 28. Rxa5 {[%clk 0:01:06.7]} 28... Qxa5 {[%clk 0:02:39.9]} 29. Qb7
{[%clk 0:01:04.9]} 29... Ra7 {[%clk 0:02:36.3]} 30. Qb8 {[%clk 0:01:04.9]} 30...
Qb6 {[%clk 0:02:32.1]} 31. Qf8 {[%clk 0:00:58.7]} 31... Nf4 {[%clk 0:02:14.4]}
32. Rc8 {[%clk 0:00:51.8]} 32... Ng6 {[%clk 0:02:14]} 33. Qd8 {[%clk 0:00:45.3]}
33... Qxd8 {[%clk 0:02:14.3]} 34. Rxd8 {[%clk 0:00:47]} 34... d5 {[%clk
0:02:15.2]} 35. Ne2 {[%clk 0:00:42.4]} 35... Ne4 {[%clk 0:02:14.8]} 36. h4
{[%clk 0:00:37.8]} 36... Ra2 {[%clk 0:02:13.3]} 37. h5 {[%clk 0:00:26.9]} 37...
Rxe2 {[%clk 0:02:12.1]} 38. hxg6+ {[%clk 0:00:28.2]} 38... Kxg6 {[%clk
0:02:12.3]} 39. Ne5+ {[%clk 0:00:28.8]} 39... Kf6 {[%clk 0:02:12.7]} 40. f3
{[%clk 0:00:30.2]} 40... Ng5 {[%clk 0:02:05]} 41. Rd7 {[%clk 0:00:28.7]} 41...
Rxe5 {[%clk 0:02:00.1]} 42. dxe5+ {[%clk 0:00:29]} 42... Kxe5 {[%clk 0:02:01.5]}
43. Kg3 {[%clk 0:00:28.3]} 43... Kf6 {[%clk 0:01:59]} 44. Ra7 {[%clk 0:00:28.2]}
44... g6 {[%clk 0:01:58.9]} 45. Kf2 {[%clk 0:00:29.2]} 45... Nh7 {[%clk
0:01:57.8]} 46. g4 {[%clk 0:00:29]} 46... Ng5 {[%clk 0:01:56]} 47. Kg3 {[%clk
0:00:30]} 47... e5 {[%clk 0:01:52]} 48. Ra6+ {[%clk 0:00:30.9]} 48... Kg7 {[%clk
0:01:52.7]} 49. Rd6 {[%clk 0:00:30.3]} 49... d4 {[%clk 0:01:52.2]} 50. Rd5
{[%clk 0:00:31.2]} 50... f6 {[%clk 0:01:52.4]} 51. Rd7+ {[%clk 0:00:32.2]} 51...
Nf7 {[%clk 0:01:53.2]} 52. f4 {[%clk 0:00:31.7]} 52... Kf8 {[%clk 0:01:51.3]}
53. f5 {[%clk 0:00:30.9]} 53... gxf5 {[%clk 0:01:49.5]} 54. gxf5 {[%clk
0:00:32]} 54... Ke8 {[%clk 0:01:50.6]} 55. Ra7 {[%clk 0:00:31.6]} 55... Kf8
{[%clk 0:01:47.8]} 56. Kg4 {[%clk 0:00:29.9]} 56... Kg7 {[%clk 0:01:46]} 57. Rd7
{[%clk 0:00:29.8]} 57... Kf8 {[%clk 0:01:42.8]} 58. Kh5 {[%clk 0:00:30.5]} 58...
Ke8 {[%clk 0:01:43.7]} 59. Rd5 {[%clk 0:00:29.9]} 59... Ke7 {[%clk 0:01:39]} 60.
Kg6 {[%clk 0:00:29.5]} 60... Nd6 {[%clk 0:01:36.5]} 61. Ra5 {[%clk 0:00:28.9]}
61... d3 {[%clk 0:01:35.3]} 62. Ra7+ {[%clk 0:00:30.2]} 62... Kd8 {[%clk
0:01:33.3]} 63. Kxf6 {[%clk 0:00:30.7]} 63... e4 {[%clk 0:01:32.7]} 64. Ke6
{[%clk 0:00:30.9]} 64... d2 {[%clk 0:01:25.5]} 65. Rd7+ {[%clk 0:00:29.8]} 65...
Ke8 {[%clk 0:01:24.2]} 66. Rxd6 {[%clk 0:00:31]} 66... e3 {[%clk 0:01:25.1]} 67.
f6 {[%clk 0:00:30.2]} 67... e2 {[%clk 0:01:22.9]} 68. f7+ {[%clk 0:00:31.4]}
68... Kf8 {[%clk 0:01:23.7]} 69. Rd8+ {[%clk 0:00:32.6]} 69... Kg7 {[%clk
0:01:25]} 70. f8=Q+ {[%clk 0:00:34]} 70... Kg6 {[%clk 0:01:25.7]} 71. Qf5+
{[%clk 0:00:34.4]} 71... Kg7 {[%clk 0:01:26]} 72. Rd7+ {[%clk 0:00:35.4]} 72...
Kg8 {[%clk 0:01:25.5]} 73. Qf7+ {[%clk 0:00:36.4]} 73... Kh8 {[%clk 0:01:26.2]}
74. Qg7# {[%clk 0:00:37.7]} 1-0